fUST/lending_fUST_20251211
["ID","MTS","AMOUNT","RATE_DAILY","PERIOD"]
[398157468,1765408246399,-122.77953978,0.00013399,2]
[398157469,1765408246408,-1357.231,0.00013399,2]
[398157470,1765408246417,-2156.0,0.00013399,2]
[398157471,1765408246426,-1983.0929191,0.00013454,7]
[398157472,1765408246436,-3558.92988729,0.00013551,2]
[398157473,1765408246452,-1101.0,0.00013604,2]
[398157474,1765408246461,-533.88981491,0.0001369,2]
[398157475,1765408246471,-390.75629877,0.0001369,2]
[398157476,1765408246483,-2000.0,0.00013697,2]
[398157477,1765408246492,-500.0,0.00013698,2]
[398157478,1765408246502,-500.0,0.00013698,2]
[398157479,1765408246512,-500.0,0.00013698,2]
[398157480,1765408246525,-384.02589835,0.00013698,2]
[398157481,1765408246535,-160.3401475,0.00013698,2]
[398157482,1765408246544,-500.0,0.00013698,2]
[398157483,1765408246553,-545.92,0.00013698,2]
[398157484,1765408246563,-1945.205755,0.00013698,2]
[398157485,1765408246572,-500.0,0.00013698,2]
[398157486,1765408246582,-500.0,0.00013698,2]
[398157487,1765408246592,-453.64225497,0.00013698,2]
[398157488,1765408246601,-816.55605895,0.00013698,2]
[398157489,1765408246610,-807.96,0.00013698,2]
[398157490,1765408246620,-500.0,0.00013698,2]
[398157491,1765408246629,-500.0,0.00013698,2]
[398157492,1765408246638,-1197.59,0.00013698,2]
[398157493,1765408246648,-500.0,0.00013698,2]
[398157494,1765408246657,-500.0,0.00013698,2]
[398157495,1765408246667,-500.0,0.00013698,2]
[398157496,1765408246677,-500.0,0.00013698,2]
[398157497,1765408246686,-500.0,0.00013698,2]
[398157498,1765408246695,-500.0,0.00013698,2]
[398157499,1765408246704,-500.0,0.00013698,2]
[398157500,1765408246713,-500.0,0.00013698,2]
[398157501,1765408246722,-500.0,0.00013698,2]
[398157502,1765408246731,-500.0,0.00013698,2]
[398157503,1765408246740,-500.0,0.00013698,2]
[398157504,1765408246749,-500.0,0.00013698,2]
[398157505,1765408246758,-500.0,0.00013698,2]
[398157506,1765408246767,-304.34430639,0.00013698,2]
[398157507,1765408246776,-585.33,0.00013698,2]
[398157508,1765408246786,-500.0,0.00013698,2]
[398157509,1765408246795,-500.0,0.00013698,2]
[398157510,1765408246804,-500.0,0.00013698,2]
[398157511,1765408246815,-244.01805931,0.00013698,2]
[398157512,1765408246824,-750.63,0.00013698,2]
[398157513,1765408246833,-802.51,0.00013698,2]
[398157514,1765408246842,-500.0,0.00013698,2]
[398157515,1765408246851,-500.0,0.00013698,2]
[398157516,1765408246860,-521.16,0.00013698,2]
[398157517,1765408246869,-500.0,0.00013698,2]
[398157518,1765408246878,-500.0,0.00013698,2]
[398157519,1765408246887,-643.46,0.00013698,2]
[398157520,1765408246896,-500.0,0.00013698,2]
[398157521,1765408246906,-500.0,0.00013698,2]
[398157522,1765408246915,-739.76,0.00013698,2]
[398157523,1765408246924,-500.0,0.00013698,2]
[398157524,1765408246933,-618.39,0.00013698,2]
[398157525,1765408246941,-500.0,0.00013698,2]
[398157526,1765408246950,-500.0,0.00013698,2]
[398157527,1765408246959,-500.0,0.00013698,2]
[398157528,1765408246968,-500.0,0.00013698,2]
[398157529,1765408246977,-500.0,0.00013698,2]
[398157530,1765408246986,-500.0,0.00013698,2]
[398157531,1765408246996,-512.44791599,0.00013698,2]
[398157532,1765408247005,-500.0,0.00013698,2]
[398157533,1765408247014,-572.27,0.00013698,2]
[398157534,1765408247024,-151.0,0.00013698,2]
[398157535,1765408247033,-500.0,0.00013698,2]
[398157536,1765408247044,-500.0,0.00013698,2]
[398157537,1765408247053,-1429.84,0.00013698,2]
[398157538,1765408247062,-500.0,0.00013698,2]
[398157539,1765408247071,-2360.61,0.00013698,2]
[398157540,1765408247080,-1304.53,0.00013698,2]
[398157541,1765408247089,-1305.06,0.00013698,2]
[398157542,1765408247098,-669.29623068,0.00013698,2]
[398157543,1765408247108,-500.0,0.00013698,2]
[398157544,1765408247117,-1204.73321522,0.00013698,2]
[398157545,1765408247126,-770.15,0.00013698,2]
[398157546,1765408247135,-1350.82,0.00013698,2]
[398157547,1765408247144,-2141.74793817,0.00013698,2]
[398157548,1765408247153,-500.0,0.00013698,2]
[398157549,1765408247163,-500.0,0.00013698,2]
[398157550,1765408247172,-500.0,0.00013698,2]
[398157551,1765408247181,-500.0,0.00013698,2]
[398157552,1765408247191,-500.0,0.00013698,2]
[398157553,1765408247200,-500.0,0.00013698,2]
[398157554,1765408247209,-755.54,0.00013698,2]
[398157555,1765408247219,-1525.65,0.00013698,2]
[398157556,1765408247228,-500.0,0.00013698,2]
[398157557,1765408247237,-500.0,0.00013698,2]
[398157558,1765408247246,-500.0,0.00013698,2]
[398157559,1765408247256,-500.0,0.00013698,2]
[398157560,1765408247265,-500.0,0.00013698,2]
[398157561,1765408247274,-790.55,0.00013698,2]
[398157562,1765408247284,-500.0,0.00013698,2]
[398157563,1765408247295,-500.0,0.00013698,2]
[398157564,1765408247305,-983.12,0.00013698,2]
[398157565,1765408247314,-500.0,0.00013698,2]
[398157566,1765408247323,-500.0,0.00013698,2]
[398157567,1765408247332,-866.61,0.00013698,2]
[398157568,1765408247341,-500.0,0.00013698,2]
[398157569,1765408247352,-500.0,0.00013698,2]
[398157570,1765408247361,-500.0,0.00013698,2]
[398157571,1765408247371,-500.0,0.00013698,2]
[398157572,1765408247380,-2034.16,0.00013698,2]
[398157573,1765408247389,-500.0,0.00013698,2]
[398157574,1765408247398,-500.0,0.00013698,2]
[398157575,1765408247407,-68.03395942,0.00013698,2]
[398157576,1765408247432,-454.932072,0.00013698,2]
[398157591,1765409225156,-156.21837641,0.00011406,2]
[398157592,1765409225178,-72.16858649,0.00012573,2]
[398157731,1765409432571,-1152.96700882,0.00012362,2]
[398157740,1765409432649,-433.18211007,0.00012362,2]
[398157792,1765409438705,-518.21374153,0.00012362,2]
[398157795,1765409438717,-553.1658229,0.00012362,2]
[398157802,1765409438798,-688.95247008,0.00012362,2]
[398157803,1765409438807,-372.90819324,0.00012362,2]
[398158009,1765409440939,-3704.51237733,0.00012362,2]
[398158010,1765409440951,-741.51229032,0.00012362,2]
[398158011,1765409440962,-8177.83141353,0.00012573,2]
[398158012,1765409440972,-1100.0,0.00012796,2]
[398158013,1765409440981,-354.5516858,0.00012854,2]
[398158014,1765409440991,-153.09242103,0.00012854,2]
[398158015,1765409441001,-4915.98926379,0.00012855,2]
[398158016,1765409441013,-4124.83434121,0.00012855,2]
[398158017,1765409441024,-1045.38613729,0.00012855,2]
[398158311,1765409443920,-1451.65521591,0.00012362,2]
[398158314,1765409443930,-46561.9139928,0.00012855,2]
[398158316,1765409443941,-2772.30601608,0.00012855,2]
[398158333,1765409444098,-93256.93049562,0.00012855,2]
[398158466,1765409446697,-6762.61166162,0.00012855,2]
[398158478,1765409446797,-6162.38421993,0.00012855,2]
[398158486,1765409446864,-25.37632921,0.00012855,2]
[398161699,1765409505458,150.0,6.736e-05,2]
[398161700,1765409505868,196.01,7.057e-05,2]
[398161701,1765409506266,294.02,7.378e-05,2]
[398161733,1765409584034,150.0,6.733e-05,2]
[398161734,1765409584324,179.72,7.053e-05,2]
[398161735,1765409584783,269.58,7.374e-05,2]
[398161736,1765409662475,150.0,6.733e-05,2]
[398161737,1765409662875,164.47,7.054e-05,2]
[398161738,1765409663277,246.7,7.375e-05,2]
[398161740,1765409724454,-328.93,7.695e-05,2]
[398161741,1765409739021,150.0,6.747e-05,2]
[398161742,1765409739427,150.0,7.068e-05,2]
[398161743,1765409739890,212.71,7.39e-05,2]
[398161744,1765409762892,160.32,6.5e-05,2]
[398161746,1765409815566,150.0,6.748e-05,2]
[398161747,1765409816271,150.0,7.069e-05,2]
[398161748,1765409816536,193.14,7.39e-05,2]
[398161749,1765409824414,160.4,6.5e-05,2]
[398161750,1765409886507,160.4,6.5e-05,2]
[398161751,1765409891174,150.0,6.748e-05,2]
[398161752,1765409891535,150.0,7.069e-05,2]
[398161753,1765409891932,174.31,7.39e-05,2]
[398161754,1765409945346,160.4,6.5e-05,2]
[398161755,1765409964978,150.0,6.747e-05,2]
[398161756,1765409965377,150.0,7.068e-05,2]
[398161757,1765409965774,156.2,7.389e-05,2]
[398161758,1765410005462,160.46,6.5e-05,2]
[398161759,1765410036071,150.0,6.748e-05,2]
[398161760,1765410036479,150.0,7.07e-05,2]
[398161761,1765410036581,-529.0,7.711e-05,2]
[398161762,1765410036902,150.0,7.391e-05,2]
[398161763,1765410066549,160.53,6.5e-05,2]
[398161764,1765410066850,160.53,7.2e-05,2]
[398161765,1765410109767,150.0,6.75e-05,2]
[398161766,1765410110167,150.0,7.072e-05,2]
[398161767,1765410110599,150.0,7.393e-05,2]
[398161768,1765410126980,160.53,6.5e-05,2]
[398161769,1765410127562,160.53,7.2e-05,2]
[398161770,1765410186571,160.53,6.5e-05,2]
[398161771,1765410186867,160.53,7.4e-05,2]
[398161772,1765410188492,150.0,6.749e-05,2]
[398161773,1765410188681,150.0,7.07e-05,2]
[398161774,1765410189105,150.0,7.391e-05,2]
[398161775,1765410246601,160.53,6.5e-05,2]
[398161776,1765410246885,160.53,7.6e-05,2]
[398161777,1765410260667,150.0,6.751e-05,2]
[398161778,1765410261569,150.0,7.072e-05,2]
[398161779,1765410261713,150.0,7.394e-05,2]
[398161780,1765410305644,160.54,6.5e-05,2]
[398161781,1765410331523,150.0,6.994e-05,2]
[398161782,1765410331928,150.0,7.328e-05,2]
[398161783,1765410332616,-150.0,7.713e-05,2]
[398161784,1765410364862,160.54,6.5e-05,2]
[398161785,1765410407027,150.0,6.994e-05,2]
[398161786,1765410407503,150.0,7.327e-05,2]
[398161787,1765410408120,150.0,7.66e-05,2]
[398161788,1765410425631,160.53,6.5e-05,2]
[398161810,1765410480062,150.0,6.996e-05,2]
[398161811,1765410480468,150.0,7.329e-05,2]
[398161812,1765410480881,161.39,7.662e-05,2]
[398161813,1765410484586,160.54,6.5e-05,2]
[398161814,1765410544531,160.55,6.5e-05,2]
[398161815,1765410554626,150.0,6.997e-05,2]
[398161816,1765410554849,150.0,7.33e-05,2]
[398161817,1765410555251,150.0,7.664e-05,2]
[398161818,1765410562147,-171.21715638,7.893e-05,2]
[398161819,1765410562174,-191.7,7.997e-05,2]
[398161820,1765410562195,-239.62,8.33e-05,2]
[398161821,1765410562216,-287.54,8.663e-05,2]
[398161822,1765410562238,-335.47,8.996e-05,2]
[398161823,1765410562258,-160.55,9e-05,2]
[398161824,1765410562277,-540.61729191,9.241e-05,2]
[398161825,1765410562296,-517.08599659,9.277e-05,2]
[398161826,1765410562318,-383.39,9.329e-05,2]
[398161827,1765410562340,-431.32,9.663e-05,2]
[398161828,1765410562364,-479.24,9.996e-05,2]
[398161829,1765410562383,-250.0,0.00010415,2]
[398161830,1765410562405,-300.0,0.00010598,2]
[398161831,1765410562426,-2268.21127486,0.00010599,2]
[398161832,1765410562449,-3266.2242358,0.00010599,2]
[398161833,1765410562470,-4445.69409872,0.00010599,2]
[398161834,1765410562490,-5806.62086364,0.00010599,2]
[398161835,1765410562508,-517.08599659,0.00010659,2]
[398161836,1765410562530,-300.0,0.0001081,2]
[398161837,1765410562552,-300.0,0.0001081,2]
[398161838,1765410562573,-300.0,0.0001081,2]
[398161839,1765410562597,-300.0,0.0001081,2]
[398161840,1765410562622,-300.0,0.0001081,2]
[398161841,1765410562650,-300.0,0.0001081,2]
[398161842,1765410562672,-300.0,0.0001081,2]
[398161843,1765410562694,-300.0,0.0001081,2]
[398161844,1765410562716,-300.0,0.0001081,2]
[398161845,1765410562737,-300.0,0.0001081,2]
[398161846,1765410562757,-300.0,0.0001081,2]
[398161847,1765410562778,-300.0,0.0001081,2]
[398161848,1765410562799,-300.0,0.0001081,2]
[398161849,1765410562824,-300.0,0.0001081,2]
[398161850,1765410562846,-300.0,0.0001081,2]
[398161851,1765410562868,-600.0,0.0001081,2]
[398161852,1765410562887,-540.61729191,0.00011067,2]
[398161853,1765410562908,-160.55,0.000115,2]
[398161854,1765410562928,-271.7611052,0.00011549,2]
[398161855,1765410562947,-245.98900506,0.00011708,2]
[398161856,1765410562970,-607.6438117,0.00011891,2]
[398161857,1765410627360,150.0,7.007e-05,2]
[398161858,1765410628119,150.0,7.341e-05,2]
[398161859,1765410628234,150.0,7.674e-05,2]
[398161888,1765410631686,-150.0,8.008e-05,2]
[398161890,1765410631695,-150.0,8.342e-05,2]
[398161892,1765410631705,-101.15789213,8.675e-05,2]
[398161944,1765410637827,-48.84210787,8.675e-05,2]
[398161945,1765410637837,-588.0,0.00011891,2]
[398161946,1765410637846,-517.08599659,0.00012042,2]
[398161947,1765410637856,-199.942,0.000126,2]
[398161948,1765410637865,-10917.67524954,0.000126,2]
[398161949,1765410637877,-1587.82724308,0.000126,2]
[398161950,1765410637888,-971.06999034,0.000126,2]
[398161951,1765410637899,-2668.98,0.000126,2]
[398161954,1765410638272,-5672.69566845,0.000126,2]
[398161955,1765410638283,-27082.3,0.000126,2]
[398161956,1765410638296,-3006.72,0.000126,2]
[398161957,1765410638308,-2739.5793,0.000126,2]
[398161964,1765410640052,-12310.96601675,0.000126,2]
[398161965,1765410640063,-641537.09083692,0.000126,2]
[398161966,1765410640098,-797.95459121,0.000126,2]
[398162261,1765410643066,-2881.26339826,0.000126,2]
[398162469,1765410645864,-53210.36909652,0.000126,2]
[398162471,1765410694512,150.0,7.003e-05,2]
[398162472,1765410694918,173.01,7.336e-05,2]
[398162473,1765410695381,259.51,7.669e-05,2]
[398162474,1765410773617,150.0,6.75e-05,2]
[398162475,1765410774015,158.18,7.071e-05,2]
[398162476,1765410774781,237.27,7.393e-05,2]
[398162478,1765410852316,150.0,6.747e-05,2]
[398162479,1765410852710,150.0,7.069e-05,2]
[398162480,1765410853106,216.45,7.39e-05,2]
[398162481,1765410853500,288.6,7.711e-05,2]
[398162482,1765410931435,150.0,6.748e-05,2]
[398162483,1765410931902,150.0,7.07e-05,2]
[398162484,1765410932299,185.71,7.391e-05,2]
[398162485,1765410932724,247.61,7.712e-05,2]
[398162486,1765410962546,171.59,6.5e-05,2]
[398162487,1765410963961,171.59,6.526e-05,2]
[398162488,1765411008852,150.0,6.749e-05,2]
[398162489,1765411009252,150.0,7.07e-05,2]
[398162490,1765411009657,157.71,7.392e-05,2]
[398162491,1765411010054,210.28,7.713e-05,2]
[398162492,1765411082448,150.0,6.749e-05,2]
[398162493,1765411082866,150.0,7.07e-05,2]
[398162494,1765411083261,150.0,7.392e-05,2]
[398162495,1765411083750,176.27,7.713e-05,2]
[398162496,1765411155594,150.0,6.751e-05,2]
[398162497,1765411156002,150.0,7.072e-05,2]
[398162498,1765411156425,150.0,7.394e-05,2]
[398162499,1765411229616,150.0,6.749e-05,2]
[398162500,1765411230039,150.0,7.07e-05,2]
[398162501,1765411230455,150.0,7.391e-05,2]
[398162502,1765411301483,150.0,6.993e-05,2]
[398162503,1765411302124,150.0,7.326e-05,2]
[398162504,1765411303852,163.89,7.659e-05,2]
[398162505,1765411377227,150.0,6.986e-05,2]
[398162506,1765411377623,150.0,7.319e-05,2]
[398162507,1765411378020,150.0,7.651e-05,2]
[398162508,1765411448396,150.0,6.989e-05,2]
[398162509,1765411448843,150.0,7.321e-05,2]
[398162510,1765411449222,150.0,7.654e-05,2]
[398162512,1765411521028,150.0,6.984e-05,2]
[398162513,1765411521444,150.0,7.317e-05,2]
[398162514,1765411521856,155.26,7.649e-05,2]
[398162515,1765411597426,150.0,6.985e-05,2]
[398162516,1765411598327,150.0,7.318e-05,2]
[398162517,1765411598759,150.0,7.65e-05,2]
[398162518,1765411599124,-529.0,7.715e-05,2]
[398162519,1765411599145,-645.05632474,9.033e-05,2]
[398162520,1765411599166,-499.48930463,9.545e-05,2]
[398162521,1765411599186,-4901.3484213,0.00010228,2]
[398162522,1765411599206,-645.05632474,0.0001032,2]
[398162523,1765411599228,-499.48930463,0.00011115,2]
[398162524,1765411599248,-645.05632474,0.00011608,2]
[398162525,1765411599272,-300.0,0.00011839,2]
[398162526,1765411599295,-300.0,0.00011839,2]
[398162527,1765411599320,-300.0,0.00011839,2]
[398162528,1765411599343,-300.0,0.00011839,2]
[398162529,1765411599366,-300.0,0.00011839,2]
[398162530,1765411599390,-300.0,0.00011839,2]
[398162531,1765411599414,-300.0,0.00011839,2]
[398162532,1765411599441,-300.0,0.00011839,2]
[398162533,1765411599464,-300.0,0.00011839,2]
[398162534,1765411599488,-300.0,0.00011839,2]
[398162535,1765411599514,-300.0,0.00011839,2]
[398162536,1765411599537,-300.0,0.00011839,2]
[398162537,1765411599560,-300.0,0.00011839,2]
[398162538,1765411599585,-300.0,0.00011839,2]
[398162539,1765411599610,-300.0,0.00011839,2]
[398162540,1765411599632,-155.0278037,0.00012178,2]
[398162541,1765411599653,-485.35321405,0.00012537,2]
[398162542,1765411629392,-183.84,7.983e-05,2]
[398162543,1765411629420,-229.8,8.315e-05,2]
[398162544,1765411629449,-91.79537378,8.648e-05,2]
[398162545,1765411671584,150.0,6.992e-05,2]
[398162546,1765411672047,150.0,7.325e-05,2]
[398162547,1765411672452,150.0,7.658e-05,2]
[398162548,1765411745187,150.0,6.986e-05,2]
[398162549,1765411745597,150.0,7.319e-05,2]
[398162550,1765411746031,150.0,7.652e-05,2]
[398162551,1765411750130,-195.57,7.984e-05,2]
[398162552,1765411750158,-244.46,8.317e-05,2]
[398162553,1765411750185,-293.36,8.65e-05,2]
[398162554,1765411750211,-342.25,8.982e-05,2]
[398162555,1765411750238,-391.14,9.315e-05,2]
[398162556,1765411750266,-440.04,9.648e-05,2]
[398162557,1765411750294,-433.72884022,9.98e-05,2]
[398162558,1765411775229,242.0,0.000111,6]
[398162559,1765411803177,153.2,6.5e-05,2]
[398162560,1765411813625,1000.0,0.000111,6]
[398162561,1765411824905,150.0,6.988e-05,2]
[398162562,1765411825276,150.0,7.321e-05,2]
[398162563,1765411825690,150.0,7.654e-05,2]
[398162597,1765411831904,-150.0,7.987e-05,2]
[398162599,1765411831914,-150.0,8.32e-05,2]
[398162601,1765411831923,-150.0,8.652e-05,2]
[398162603,1765411831932,-150.0,8.985e-05,2]
[398162605,1765411831942,-153.2,0.000103,2]
[398162607,1765411831951,-253.55212139,0.00012362,2]
[398162609,1765411831961,-289.77385302,0.00012362,2]
[398162611,1765411831971,-452.3188737,0.00012362,2]
[398162613,1765411831980,-156.00737595,0.00012537,2]
[398162615,1765411831989,-559.5894785,0.00012537,2]
[398162617,1765411831998,-17073.8859508,0.00012537,2]
[398162619,1765411832007,-958.25020303,0.00012537,2]
[398162760,1765411838089,-862.67775017,0.00012537,2]
[398162762,1765411838098,-2172.19564187,0.00012585,2]
[398162764,1765411838108,-9559.37059179,0.000126,2]
[398162766,1765411838119,-657.04325237,0.000126,2]
[398162779,1765411838278,-9003.88907233,0.000126,2]
[398162780,1765411838289,-445486.85595687,0.000126,2]
[398162810,1765411840414,-8965.26925915,0.000126,2]
[398162812,1765411840425,-1987.87049881,0.000126,2]
[398163113,1765411843266,-31418.17967045,0.000126,2]
[398163127,1765411843520,-1500.54189139,0.000126,2]
[398163420,1765411846420,-261741.76484095,0.000126,2]
[398163422,1765411846432,-53088.07130126,0.000126,2]
[398163424,1765411846453,-496.15,0.000126,2]
[398163549,1765412970168,-258.48687758,9.084e-05,2]
[398163550,1765412970192,-547.0,9.084e-05,2]
[398163551,1765412970214,-258.48687758,0.00010382,2]
[398163552,1765412970236,-165.23516046,0.00010599,2]
[398163553,1765412970257,-227.45766407,0.00011328,2]
[398163555,1765412970280,-259.95161608,0.00011328,2]
[398163556,1765412970303,-405.76822573,0.00011328,2]
[398163557,1765412970325,-258.48687758,0.00011681,2]
[398163558,1765412970348,-207.27278685,0.00011924,2]
[398163559,1765412970370,-373.09101632,0.00011924,2]
[398163560,1765412970393,-663.27291791,0.00011924,2]
[398163561,1765412970417,-925.55277688,0.00011924,2]
[398163616,1765413032002,-109.77479342,0.00011924,2]
[398163618,1765413032012,-846.85005586,0.00012345,2]
[398163620,1765413032024,-153.14994414,0.00012345,2]
[398163622,1765413032033,-444.06935145,0.00012522,2]
[398163625,1765413032048,-685.32321921,0.00012522,2]
[398163627,1765413032060,-670.60742934,0.00012522,2]
[398163629,1765413032069,-284.63989847,0.00012551,2]
[398163631,1765413032078,-512.35181725,0.00012551,2]
[398163633,1765413032087,-871.76948339,0.00012567,2]
[398163635,1765413032096,-1101.0,0.00012567,2]
[398163638,1765413032106,-500.0,0.00012568,2]
[398163641,1765413032115,-500.0,0.00012568,2]
[398163644,1765413032123,-500.0,0.00012568,2]
[398163647,1765413032132,-500.0,0.00012568,2]
[398163649,1765413032141,-500.0,0.00012568,2]
[398163651,1765413032150,-500.0,0.00012568,2]
[398163652,1765413032159,-500.0,0.00012568,2]
[398163654,1765413032168,-500.0,0.00012568,2]
[398163656,1765413032177,-500.0,0.00012568,2]
[398163658,1765413032186,-500.0,0.00012568,2]
[398163660,1765413032195,-533.88981491,0.00012568,2]
[398163662,1765413032204,-500.0,0.00012568,2]
[398163664,1765413032214,-1151.0,0.00012574,2]
[398163666,1765413032223,-248.18618006,0.00012575,2]
[398163668,1765413032232,-370.20862029,0.00012575,2]
[398163669,1765413032241,-645.79801636,0.00012575,2]
[398163671,1765413032249,-500.0,0.00012575,2]
[398163673,1765413032258,-251.47857252,0.00012575,2]
[398163675,1765413032268,-633.69167438,0.00012575,2]
[398163677,1765413032277,-159.954,0.00012575,2]
[398163679,1765413032286,-1365.6959649,0.00012575,2]
[398163681,1765413032295,-62485.27340849,0.00012576,2]
[398163841,1765413038154,-500.0,0.00012568,2]
[398163842,1765413038164,-500.0,0.00012568,2]
[398163843,1765413038174,-500.0,0.00012568,2]
[398163844,1765413038183,-163219.32183988,0.00012576,2]
[398163845,1765413038304,-889.78,0.00012576,2]
[398163846,1765413038316,-189966.49076474,0.00012576,2]
[398164435,1765413046214,-898.7077742,0.00012568,2]
[398164437,1765413046228,-101.2922258,0.00012568,2]
[398164439,1765413046238,-1000.0,0.00012568,2]
[398164441,1765413046248,-1000.0,0.00012568,2]
[398164443,1765413046258,-1000.0,0.00012568,2]
[398164445,1765413046267,-1000.0,0.00012568,2]
[398164447,1765413046277,-597.41145779,0.00012568,2]
[398164449,1765413046290,-402.58854221,0.00012568,2]
[398164452,1765413046300,-130.13032711,0.00012568,2]
[398168061,1765414046130,-172.611697,9.497e-05,2]
[398168062,1765414046152,-4.49409494,9.497e-05,2]
[398168064,1765414082256,153.2,6.5e-05,2]
[398168067,1765414149111,-548.50590506,9.497e-05,2]
[398168068,1765414149133,-197.03819841,9.497e-05,2]
[398168069,1765414149155,-910.84767512,0.0001194,2]
[398168070,1765414149178,-1421.77629288,0.0001194,2]
[398168071,1765414149201,-159.954,0.00012226,2]
[398168072,1765414149229,-197.03819841,0.00012252,2]
[398168073,1765414149252,-159.0,0.000123,2]
[398168074,1765414149703,-78.27878615,0.000123,2]
[398168115,1765414232223,-81.72121385,0.000123,2]
[398168117,1765414232233,-1090.72235496,0.00012468,2]
[398168120,1765414232244,-10.27764504,0.00012468,2]
[398168122,1765414232254,-422.90446503,0.00012468,2]
[398168208,1765414238336,-110.98534988,0.00012468,2]
[398168210,1765414238347,-1000.0,0.00012468,2]
[398168212,1765414238357,-1000.0,0.00012468,2]
[398168214,1765414238366,-1000.0,0.00012468,2]
[398168216,1765414238375,-1000.0,0.00012468,2]
[398168218,1765414238384,-546.58674962,0.00012468,2]
[398168220,1765414238398,-453.41325038,0.00012468,2]
[398168222,1765414238407,-1000.0,0.00012468,2]
[398168224,1765414238416,-643.67795416,0.00012468,2]
[398168226,1765414238428,-356.32204584,0.00012468,2]
[398168228,1765414238437,-1000.0,0.00012468,2]
[398168230,1765414238447,-287.38395416,0.00012468,2]
[398168232,1765414238459,-712.61604584,0.00012468,2]
[398168234,1765414238468,-281.44869833,0.00012468,2]
[398168444,1765414242570,-718.55130167,0.00012468,2]
[398168446,1765414242579,-693.34869918,0.00012468,2]
[398168452,1765414242624,-306.65130082,0.00012468,2]
[398168454,1765414242634,-889.1773547,0.00012468,2]
[398168456,1765414242644,-173.73032604,0.00012475,2]
[398168458,1765414242653,-2060.69173862,0.00012476,2]
[398168845,1765414246246,-4033.88396737,0.00012476,2]
[398168879,1765414246557,-2923.75894033,0.00012476,2]
[398168881,1765414246568,-17281.06535677,0.00012476,2]
[398169361,1765414277311,1894.67,0.00014141,30]
[398169447,1765415252118,-166.12541093,0.00012,2]
[398169449,1765415363094,-448.80420204,0.00012,2]
[398169450,1765415363114,-159.954,0.00012128,2]
[398169451,1765415363136,-42495.88190531,0.00012276,2]
[398169511,1765415438548,-300.0,0.00012275,2]
[398169513,1765415438559,-1200.0,0.00012275,2]
[398169515,1765415438569,-593.0,0.00012275,2]
[398169517,1765415438580,-46106.57652972,0.00012276,2]
[398169729,1765415440679,-499.7358338,0.00012276,2]
[398169730,1765415440736,-24969.26443669,0.00012276,2]
[398170061,1765415444196,-5004.47522418,0.00012276,2]
[398172745,1765415724576,150.0,6.765e-05,2]
[398172746,1765415724980,150.0,7.088e-05,2]
[398172747,1765415725399,208.51,7.41e-05,2]
[398172750,1765415806488,150.0,6.77e-05,2]
[398172751,1765415806931,163.53,7.092e-05,2]
[398172752,1765415807359,245.3,7.414e-05,2]
[398172759,1765415892450,150.0,6.767e-05,2]
[398172760,1765415892866,157.92,7.089e-05,2]
[398172761,1765415893280,236.87,7.411e-05,2]
[398172768,1765415972903,150.0,6.768e-05,2]
[398172769,1765415973308,150.0,7.09e-05,2]
[398172770,1765415973917,216.07,7.413e-05,2]
[398172771,1765416056123,150.0,6.782e-05,2]
[398172772,1765416056575,229.74,7.105e-05,2]
[398172773,1765416057032,344.61,7.428e-05,2]